fUSD/lending_fUSD_20240409
["ID","MTS","AMOUNT","RATE_DAILY","PERIOD"]
[321997859,1712678601597,-500.0,0.00019452,2]
[321997860,1712678601620,-1482.35,0.00019452,2]
[321997861,1712678601645,-500.0,0.00019452,2]
[321997862,1712678601669,-500.0,0.00019452,2]
[321997863,1712678601696,-6065.99,0.00019452,2]
[321997864,1712678601724,-500.0,0.00019452,2]
[321997865,1712678601749,-188.68,0.00019452,2]
[321997866,1712678601821,-500.0,0.00019452,2]
[321997867,1712678601848,-564.39,0.00019452,2]
[321997868,1712678601874,-1304.86,0.00019452,2]
[321997869,1712678601898,-2142.78,0.00019452,2]
[321997870,1712678601923,-732.3,0.00019452,2]
[321997871,1712678601947,-500.0,0.00019452,2]
[321997872,1712678601971,-329.41,0.00019452,2]
[321997873,1712678601993,-867.56,0.00019452,2]
[321997874,1712678602017,-2553.1,0.00019452,2]
[321997875,1712678602042,-570.28,0.00019452,2]
[321997876,1712678602065,-500.0,0.00019452,2]
[321997877,1712678602090,-528.2,0.00019452,2]
[321997878,1712678602113,-500.0,0.00019452,2]
[321997879,1712678602137,-1672.96,0.00019452,2]
[321997880,1712678602162,-6181.26,0.00019452,2]
[321997881,1712678602185,-500.0,0.00019452,2]
[321997882,1712678602206,-500.0,0.00019452,2]
[321997883,1712678602233,-813.03,0.00019452,2]
[321997884,1712678602256,-500.0,0.00019452,2]
[321997885,1712678602279,-3149.26,0.00019452,2]
[321997886,1712678602301,-7141.56,0.00019452,2]
[321997887,1712678602326,-500.0,0.00019452,2]
[321997888,1712678602350,-500.0,0.00019452,2]
[321997889,1712678602373,-500.0,0.00019452,2]
[321997890,1712678602396,-405.6,0.00019452,2]
[321997891,1712678602419,-500.0,0.00019452,2]
[321997892,1712678602443,-833.92,0.00019452,2]
[321997893,1712678602472,-500.0,0.00019452,2]
[321997894,1712678602497,-1112.75,0.00019452,2]
[321997895,1712678602524,-593.76,0.00019452,2]
[321997896,1712678602551,-18933.75,0.00019452,2]
[321997897,1712678602578,-1848.76,0.00019452,2]
[321997898,1712678602604,-748.78,0.00019452,2]
[321997899,1712678602629,-1710.18,0.00019452,2]
[321997900,1712678602654,-500.0,0.00019452,2]
[321997901,1712678602678,-519.4,0.00019452,2]
[321997902,1712678602703,-1877.53,0.00019452,2]
[321997903,1712678602731,-500.0,0.00019452,2]
[321997904,1712678602754,-500.0,0.00019452,2]
[321997905,1712678602777,-500.0,0.00019452,2]
[321997906,1712678602801,-921.86,0.00019452,2]
[321997907,1712678602824,-1782.96,0.00019452,2]
[321997908,1712678602848,-2998.81,0.00019452,2]
[321997909,1712678602870,-157.82,0.00019452,2]
[321997910,1712678602893,-500.0,0.00019452,2]
[321997911,1712678602916,-500.0,0.00019452,2]
[321997912,1712678602939,-610.54,0.00019452,2]
[321997913,1712678602966,-500.0,0.00019452,2]
[321997914,1712678602989,-500.0,0.00019452,2]
[321997915,1712678603011,-500.0,0.00019452,2]
[321997916,1712678603035,-2967.24,0.00019452,2]
[321997917,1712678603060,-617.84,0.00019452,2]
[321997918,1712678603083,-378.57,0.00019452,2]
[321997919,1712678603108,-500.0,0.00019452,2]
[321997920,1712678603134,-4257.09,0.00019452,2]
[321997921,1712678603159,-761.51,0.00019452,2]
[321997922,1712678603183,-2237.16,0.00019452,2]
[321997923,1712678603207,-1416.08,0.00019452,2]
[321997924,1712678603233,-714.6,0.00019452,2]
[321997925,1712678603255,-545.1,0.00019452,2]
[321997926,1712678603280,-500.0,0.00019452,2]
[321997927,1712678603305,-1053.2,0.00019452,2]
[321997928,1712678603329,-1070.91,0.00019452,2]
[321997929,1712678603351,-388.0,0.00019452,2]
[321997930,1712678603375,-500.0,0.00019452,2]
[321997931,1712678603398,-231.98335859,0.00019452,2]
[321997932,1712678603420,-2630.97,0.00019452,2]
[321997933,1712678603443,-2104.02,0.00019452,2]
[321997934,1712678603467,-500.0,0.00019452,2]
[321997935,1712678603490,-1130.26,0.00019452,2]
[321997936,1712678603512,-500.0,0.00019452,2]
[321997937,1712678603535,-1797.14,0.00019452,2]
[321997938,1712678603558,-500.0,0.00019452,2]
[321997939,1712678603580,-254.83,0.00019452,2]
[321997940,1712678603604,-500.0,0.00019452,2]
[321997941,1712678603626,-3859.35,0.00019452,2]
[321997942,1712678603649,-500.0,0.00019452,2]
[321997943,1712678603671,-1114.24,0.00019452,2]
[321997944,1712678603693,-770.0,0.00019452,2]
[321997945,1712678603717,-500.0,0.00019452,2]
[321997946,1712678603740,-500.0,0.00019452,2]
[321997947,1712678603762,-500.0,0.00019452,2]
[321997948,1712678603786,-4185.44,0.00019452,2]
[321997949,1712678603809,-870.04,0.00019452,2]
[321997950,1712678603832,-500.0,0.00019452,2]
[321997951,1712678603855,-1111.01,0.00019452,2]
[321997952,1712678603878,-500.0,0.00019452,2]
[321997953,1712678603902,-306.83096157,0.00019452,2]
[321997954,1712678603926,-1743.98,0.00019452,2]
[321997955,1712678603949,-1028.35,0.00019452,2]
[321997956,1712678603974,-2192.3,0.00019452,2]
[321997957,1712678603997,-500.0,0.00019452,2]
[321997958,1712678604019,-169.48,0.00019452,2]
[321997959,1712678604042,-500.0,0.00019452,2]
[321997960,1712678604070,-633.56,0.00019452,2]
[321997961,1712678604095,-500.0,0.00019452,2]
[321997962,1712678604118,-195.95,0.00019452,2]
[321997963,1712678604140,-2990.51,0.00019452,2]
[321997964,1712678604164,-500.0,0.00019452,2]
[321997965,1712678604187,-500.0,0.00019452,2]
[321997966,1712678604209,-500.0,0.00019452,2]
[321997967,1712678604233,-500.0,0.00019452,2]
[321997968,1712678604255,-1169.49,0.00019452,2]
[321997969,1712678604279,-2727.63,0.00019452,2]
[321997970,1712678604301,-906.17,0.00019452,2]
[321997971,1712678604326,-500.0,0.00019452,2]
[321997972,1712678604349,-500.0,0.00019452,2]
[321997973,1712678604371,-1442.29,0.00019452,2]
[321997974,1712678604394,-500.0,0.00019452,2]
[321997975,1712678604418,-500.0,0.00019452,2]
[321997976,1712678604441,-1283.73,0.00019452,2]
[321997977,1712678604466,-570.41,0.00019452,2]
[321997978,1712678604490,-738.17,0.00019452,2]
[321997979,1712678604513,-661.78,0.00019452,2]
[321997980,1712678604537,-500.0,0.00019452,2]
[321997981,1712678604561,-3366.71,0.00019452,2]
[321997982,1712678604586,-2262.97,0.00019452,2]
[321997983,1712678604610,-365.67,0.00019452,2]
[321997984,1712678604635,-3147.82800798,0.00019456,2]
[321997985,1712678604660,-206.35448214,0.00019477,2]
[321997986,1712678604685,-5664.0145999,0.00019515,2]
[321997987,1712678604711,-1041.52027963,0.00019537,2]
[321997988,1712678604740,-9983.10690687,0.00019552,2]
[321997989,1712678604764,-7982.45565602,0.00019552,2]
[321997990,1712678604789,-1008.10614178,0.00019623,2]
[321997991,1712678604814,-163.51,0.00019711,2]
[321997992,1712678604839,-500.0,0.00019726,2]
[321997993,1712678604863,-557.51450625,0.00019726,2]
[321997994,1712678604886,-320.16,0.00019726,2]
[321997995,1712678604912,-500.0,0.00019726,2]
[321997996,1712678604936,-500.0,0.00019726,2]
[321997997,1712678604960,-496.99,0.00019726,2]
[321997998,1712678604985,-500.0,0.00019726,2]
[321997999,1712678605008,-500.0,0.00019726,2]
[321998000,1712678605030,-500.0,0.00019726,2]
[321998001,1712678605055,-500.0,0.00019726,2]
[321998002,1712678605080,-500.0,0.00019726,2]
[321998003,1712678605103,-500.0,0.00019726,2]
[321998004,1712678605125,-500.0,0.00019726,2]
[321998005,1712678605149,-500.0,0.00019726,2]
[321998006,1712678605174,-1138.02,0.00019726,2]
[321998007,1712678605196,-350.68578097,0.00019726,2]
[321998008,1712678605221,-500.0,0.00019726,2]
[321998009,1712678605245,-500.0,0.00019726,2]
[321998010,1712678605270,-352.69,0.00019726,2]
[321998011,1712678605294,-500.0,0.00019726,2]
[321998012,1712678605318,-500.0,0.00019726,2]
[321998013,1712678605341,-500.0,0.00019726,2]
[321998014,1712678605364,-500.0,0.00019726,2]
[321998015,1712678605386,-500.0,0.00019726,2]
[321998016,1712678605409,-500.0,0.00019726,2]
[321998017,1712678605432,-500.0,0.00019726,2]
[321998018,1712678605589,-500.0,0.00019726,2]
[321998019,1712678605614,-500.0,0.00019726,2]
[321998020,1712678605637,-500.0,0.00019726,2]
[321998021,1712678605661,-500.0,0.00019726,2]
[321998022,1712678605687,-500.0,0.00019726,2]
[321998023,1712678605712,-500.0,0.00019726,2]
[321998024,1712678605737,-501.28,0.00019726,2]
[321998025,1712678605761,-538.41,0.00019726,2]
[321998026,1712678605786,-500.0,0.00019726,2]
[321998027,1712678605810,-500.0,0.00019726,2]
[321998028,1712678605833,-500.0,0.00019726,2]
[321998029,1712678605856,-500.0,0.00019726,2]
[321998030,1712678605878,-500.0,0.00019726,2]
[321998031,1712678605900,-500.0,0.00019726,2]
[321998032,1712678605922,-500.0,0.00019726,2]
[321998033,1712678605944,-500.0,0.00019726,2]
[321998034,1712678605969,-500.0,0.00019726,2]
[321998035,1712678605992,-891.9,0.00019726,2]
[321998036,1712678606015,-500.0,0.00019726,2]
[321998037,1712678606038,-500.0,0.00019726,2]
[321998038,1712678606061,-500.0,0.00019726,2]
[321998039,1712678606087,-237.41092897,0.00019726,2]
[321998040,1712678606111,-500.0,0.00019726,2]
[321998041,1712678606135,-500.0,0.00019726,2]
[321998042,1712678606157,-500.0,0.00019726,2]
[321998043,1712678606183,-500.0,0.00019726,2]
[321998044,1712678606205,-211.37,0.00019726,2]
[321998045,1712678606230,-500.0,0.00019726,2]
[321998046,1712678606254,-652.69,0.00019726,2]
[321998047,1712678606277,-500.0,0.00019726,2]
[321998048,1712678606299,-317.95,0.00019726,2]
[321998049,1712678606324,-740.9,0.00019726,2]
[321998050,1712678606345,-537.99,0.00019726,2]
[321998051,1712678606367,-1103.54,0.00019726,2]
[321998052,1712678606396,-500.0,0.00019726,2]
[321998053,1712678606418,-500.0,0.00019726,2]
[321998054,1712678606441,-500.0,0.00019726,2]
[321998055,1712678606465,-500.0,0.00019726,2]
[321998056,1712678606488,-1190.42,0.00019726,2]
[321998057,1712678606510,-500.0,0.00019726,2]
[321998058,1712678606534,-500.0,0.00019726,2]
[321998059,1712678606557,-787.93,0.00019726,2]
[321998060,1712678606580,-1063.88,0.00019726,2]
[321998061,1712678606604,-500.0,0.00019726,2]
[321998062,1712678606627,-182.45,0.00019726,2]
[321998063,1712678606649,-500.0,0.00019726,2]
[321998064,1712678606672,-198.95195603,0.00019726,2]
[321998065,1712678606695,-500.0,0.00019726,2]
[321998066,1712678606718,-500.0,0.00019726,2]
[321998067,1712678606741,-756.38,0.00019726,2]
[321998068,1712678606763,-529.12,0.00019726,2]
[321998069,1712678606788,-715.58,0.00019726,2]
[321998070,1712678606811,-807.22,0.00019726,2]
[321998071,1712678606835,-612.48,0.00019726,2]
[321998072,1712678606858,-500.0,0.00019726,2]
[321998073,1712678606880,-500.0,0.00019726,2]
[321998074,1712678606903,-500.0,0.00019726,2]
[321998075,1712678606926,-500.0,0.00019726,2]
[321998076,1712678606950,-511.31,0.00019726,2]
[321998077,1712678606975,-572.0,0.00019726,2]
[321998078,1712678606998,-500.0,0.00019726,2]
[321998079,1712678607022,-232.41,0.00019726,2]
[321998080,1712678607045,-500.0,0.00019726,2]
[321998081,1712678607072,-500.0,0.00019726,2]
[321998082,1712678607097,-500.0,0.00019726,2]
[321998083,1712678607120,-500.0,0.00019726,2]
[321998084,1712678607143,-500.0,0.00019726,2]
[321998085,1712678607170,-810.81,0.00019726,2]
[321998086,1712678607193,-500.0,0.00019726,2]
[321998087,1712678607217,-500.0,0.00019726,2]
[321998088,1712678607240,-500.0,0.00019726,2]
[321998089,1712678607263,-500.0,0.00019726,2]
[321998090,1712678607286,-500.0,0.00019726,2]
[321998091,1712678607309,-500.0,0.00019726,2]
[321998092,1712678607332,-500.0,0.00019726,2]
[321998093,1712678607355,-500.0,0.00019726,2]
[321998094,1712678607378,-582.46,0.00019726,2]
[321998095,1712678607401,-500.0,0.00019726,2]
[321998096,1712678607429,-632.13,0.00019726,2]
[321998097,1712678607456,-568.45,0.00019726,2]
[321998098,1712678607481,-500.0,0.00019726,2]
[321998099,1712678607506,-1283.11,0.00019726,2]
[321998100,1712678607530,-500.0,0.00019726,2]
[321998101,1712678607556,-500.0,0.00019726,2]
[321998102,1712678607579,-706.29,0.00019726,2]
[321998103,1712678607604,-500.0,0.00019726,2]
[321998104,1712678607630,-500.0,0.00019726,2]
[321998105,1712678607654,-693.87,0.00019726,2]
[321998106,1712678607678,-500.0,0.00019726,2]
[321998107,1712678607702,-535.74,0.00019726,2]
[321998108,1712678607726,-921.17,0.00019726,2]
[321998109,1712678607750,-500.0,0.00019726,2]
[321998110,1712678607780,-500.0,0.00019726,2]
[321998111,1712678607806,-851.86,0.00019726,2]
[321998112,1712678607831,-500.0,0.00019726,2]
[321998113,1712678607854,-1017.55,0.00019726,2]
[321998114,1712678607877,-500.0,0.00019726,2]
[321998115,1712678607901,-500.0,0.00019726,2]
[321998116,1712678607925,-500.0,0.00019726,2]
[321998117,1712678607949,-500.0,0.00019726,2]
[321998118,1712678607976,-500.0,0.00019726,2]
[321998119,1712678608001,-500.0,0.00019726,2]
[321998120,1712678608026,-500.0,0.00019726,2]
[321998121,1712678608053,-670.03,0.00019726,2]
[321998122,1712678608394,-500.0,0.00019726,2]
[321998123,1712678608420,-500.0,0.00019726,2]
[321998124,1712678608444,-500.0,0.00019726,2]
[321998125,1712678608469,-500.0,0.00019726,2]
[321998126,1712678608493,-678.72,0.00019726,2]
[321998127,1712678608515,-805.7,0.00019726,2]
[321998128,1712678608538,-500.0,0.00019726,2]
[321998129,1712678608562,-500.0,0.00019726,2]
[321998130,1712678608586,-500.0,0.00019726,2]
[321998131,1712678608610,-500.0,0.00019726,2]
[321998132,1712678608633,-500.0,0.00019726,2]
[321998133,1712678608656,-500.0,0.00019726,2]
[321998134,1712678608680,-663.67,0.00019726,2]
[321998135,1712678608703,-649.16,0.00019726,2]
[321998136,1712678608731,-500.0,0.00019726,2]
[321998137,1712678608756,-500.0,0.00019726,2]
[321998138,1712678608781,-500.0,0.00019726,2]
[321998139,1712678608805,-500.0,0.00019726,2]
[321998140,1712678608829,-500.0,0.00019726,2]
[321998141,1712678608856,-500.0,0.00019726,2]
[321998142,1712678608881,-500.0,0.00019726,2]
[321998143,1712678608907,-675.34,0.00019726,2]
[321998144,1712678608931,-500.0,0.00019726,2]
[321998145,1712678608957,-500.0,0.00019726,2]
[321998146,1712678608984,-500.0,0.00019726,2]
[321998147,1712678609010,-500.0,0.00019726,2]
[321998148,1712678609033,-595.25,0.00019726,2]
[321998149,1712678609061,-500.0,0.00019726,2]
[321998150,1712678609088,-500.0,0.00019726,2]
[321998151,1712678609114,-556.62,0.00019726,2]
[321998152,1712678609139,-500.0,0.00019726,2]
[321998153,1712678609163,-500.0,0.00019726,2]
[321998154,1712678609187,-661.68,0.00019726,2]
[321998155,1712678609211,-592.31,0.00019726,2]
[321998156,1712678609236,-500.0,0.00019726,2]
[321998157,1712678609260,-500.0,0.00019726,2]
[321998158,1712678609283,-319.15321812,0.00019726,2]
[321998159,1712678609307,-712.24,0.00019726,2]
[321998160,1712678609331,-500.0,0.00019726,2]
[321998161,1712678609356,-500.0,0.00019726,2]
[321998162,1712678609378,-706.5,0.00019726,2]
[321998163,1712678609401,-544.21,0.00019726,2]
[321998164,1712678609424,-500.0,0.00019726,2]
[321998165,1712678609449,-500.0,0.00019726,2]
[321998166,1712678609477,-765.73,0.00019726,2]
[321998167,1712678609502,-688.42,0.00019726,2]
[321998168,1712678609525,-500.0,0.00019726,2]
[321998169,1712678609549,-749.95,0.00019726,2]
[321998170,1712678609574,-663.88,0.00019726,2]
[321998171,1712678609599,-2080.58,0.00019726,2]
[321998172,1712678609625,-500.0,0.00019726,2]
[321998173,1712678609649,-776.53,0.00019726,2]
[321998174,1712678609676,-500.0,0.00019726,2]
[321998175,1712678609702,-500.0,0.00019726,2]
[321998176,1712678609729,-576.17,0.00019726,2]
[321998177,1712678609753,-793.47,0.00019726,2]
[321998178,1712678609777,-1422.94,0.00019726,2]
[321998179,1712678609802,-917.32,0.00019726,2]
[321998180,1712678609826,-500.0,0.00019726,2]
[321998181,1712678609850,-577.52,0.00019726,2]
[321998182,1712678609874,-500.0,0.00019726,2]
[321998183,1712678609899,-6056.71,0.00019726,2]
[321998184,1712678609923,-1847.94,0.00019726,2]
[321998185,1712678609945,-1287.16,0.00019726,2]
[321998186,1712678609970,-500.0,0.00019726,2]
[321998187,1712678609994,-500.0,0.00019726,2]
[321998188,1712678610018,-500.0,0.00019726,2]
[321998189,1712678610040,-633.48,0.00019726,2]
[321998190,1712678610063,-2513.71,0.00019726,2]
[321998191,1712678610087,-1022.02,0.00019726,2]
[321998192,1712678610110,-16598.9,0.00019726,2]
[321998193,1712678610132,-2793.02,0.00019726,2]
[321998194,1712678610155,-591.73,0.00019726,2]
[321998195,1712678610178,-500.0,0.00019726,2]
[321998196,1712678610201,-1725.47,0.00019726,2]
[321998197,1712678610227,-659.77,0.00019726,2]
[321998198,1712678610250,-24753.72,0.00019726,2]
[321998199,1712678610273,-500.0,0.00019726,2]
[321998200,1712678610297,-5036.72,0.00019726,2]
[321998201,1712678610320,-1885.45,0.00019726,2]
[321998202,1712678610344,-500.0,0.00019726,2]
[321998203,1712678610368,-1504.97,0.00019726,2]
[321998204,1712678610393,-500.0,0.00019726,2]
[321998205,1712678610417,-1988.55,0.00019726,2]
[321998206,1712678610444,-2716.11,0.00019726,2]
[321998207,1712678610469,-3967.8,0.00019726,2]
[321998208,1712678610493,-500.0,0.00019726,2]
[321998209,1712678610515,-500.0,0.00019726,2]
[321998210,1712678610538,-799.01,0.00019726,2]
[321998211,1712678610561,-554.07,0.00019726,2]
[321998212,1712678610585,-6883.52,0.00019726,2]
[321998213,1712678610609,-1459.44,0.00019726,2]
[321998214,1712678610633,-586.09,0.00019726,2]
[321998215,1712678610656,-500.0,0.00019726,2]
[321998216,1712678610680,-500.0,0.00019726,2]
[321998217,1712678610705,-500.0,0.00019726,2]
[321998218,1712678610783,-985.75,0.00019726,2]
[321998219,1712678610807,-578.67,0.00019726,2]
[321998220,1712678610832,-3897.67,0.00019726,2]
[321998221,1712678610856,-500.0,0.00019726,2]
[321998222,1712678610880,-500.0,0.00019726,2]
[321998223,1712678610907,-1384.68,0.00019726,2]
[321998224,1712678610932,-509.05,0.00019726,2]
[321998225,1712678610958,-500.0,0.00019726,2]
[321998226,1712678610985,-500.0,0.00019726,2]
[321998227,1712678611009,-1596.47,0.00019726,2]
[321998228,1712678611034,-500.0,0.00019726,2]
[321998229,1712678611062,-1094.24,0.00019726,2]
[321998230,1712678611085,-500.0,0.00019726,2]
[321998231,1712678611108,-500.0,0.00019726,2]
[321998232,1712678611131,-907.55,0.00019726,2]
[321998233,1712678611158,-3591.43,0.00019726,2]
[321998234,1712678611182,-500.0,0.00019726,2]
[321998235,1712678611206,-1719.88,0.00019726,2]
[321998236,1712678611230,-1366.23,0.00019726,2]
[321998237,1712678611253,-2792.25,0.00019726,2]
[321998238,1712678611278,-500.0,0.00019726,2]
[321998239,1712678611301,-1151.71,0.00019726,2]
[321998240,1712678611328,-500.0,0.00019726,2]
[321998241,1712678611354,-500.0,0.00019726,2]
[321998242,1712678611380,-6527.27,0.00019726,2]
[321998243,1712678611404,-500.0,0.00019726,2]
[321998244,1712678611427,-15422.31,0.00019726,2]
[321998245,1712678611456,-500.0,0.00019726,2]
[321998246,1712678611483,-1323.15,0.00019726,2]
[321998247,1712678611508,-825.07,0.00019726,2]
[321998248,1712678611533,-500.0,0.00019726,2]
[321998249,1712678611558,-2725.1,0.00019726,2]
[321998250,1712678611582,-1096.86,0.00019726,2]
[321998251,1712678611607,-608.15,0.00019726,2]
[321998252,1712678611630,-500.0,0.00019726,2]
[321998253,1712678611653,-882.2,0.00019726,2]
[321998254,1712678611675,-512.47294081,0.00019726,2]
[321998255,1712678611699,-4501.57,0.00019726,2]
[321998256,1712678611728,-1187.13,0.00019726,2]
[321998257,1712678611751,-500.0,0.00019726,2]
[321998258,1712678611775,-629.67,0.00019726,2]
[321998259,1712678611799,-541.49,0.00019726,2]
[321998260,1712678611823,-500.0,0.00019726,2]
[321998261,1712678611846,-835.12,0.00019726,2]
[321998262,1712678611871,-1283.49,0.00019726,2]
[321998263,1712678611894,-500.0,0.00019726,2]
[321998264,1712678611917,-2275.93,0.00019726,2]
[321998265,1712678611941,-1358.69,0.00019726,2]
[321998266,1712678611967,-9473.13,0.00019726,2]
[321998267,1712678611991,-500.0,0.00019726,2]
[321998268,1712678612015,-500.0,0.00019726,2]
[321998269,1712678612038,-1356.32,0.00019726,2]
[321998270,1712678612061,-1307.65,0.00019726,2]
[321998271,1712678612085,-880.96,0.00019726,2]
[321998272,1712678612111,-500.0,0.00019726,2]
[321998273,1712678612135,-2494.4,0.00019726,2]
[321998274,1712678612159,-500.0,0.00019726,2]
[321998275,1712678612183,-1116.54,0.00019726,2]
[321998276,1712678612207,-682.44,0.00019726,2]
[321998277,1712678612232,-3654.84,0.00019726,2]
[321998278,1712678612255,-500.0,0.00019726,2]
[321998279,1712678612279,-362.64,0.00019726,2]
[321998280,1712678612303,-2197.44,0.00019726,2]
[321998281,1712678612328,-500.0,0.00019726,2]
[321998282,1712678612353,-500.0,0.00019726,2]
[321998283,1712678612376,-500.0,0.00019726,2]
[321998284,1712678612401,-1955.57,0.00019726,2]
[321998285,1712678612425,-2046.07,0.00019726,2]
[321998286,1712678612452,-515.04,0.00019726,2]
[321998287,1712678612477,-1572.0,0.00019726,2]
[321998288,1712678612502,-500.0,0.00019726,2]
[321998289,1712678612525,-1354.98,0.00019726,2]
[321998290,1712678612548,-861.76,0.00019726,2]
[321998291,1712678612572,-500.0,0.00019726,2]
[321998292,1712678612596,-1807.34,0.00019726,2]
[321998293,1712678612619,-500.0,0.00019726,2]
[321998294,1712678612643,-1482.35,0.00019726,2]
[321998295,1712678612665,-500.0,0.00019726,2]
[321998296,1712678612689,-372.19,0.00019726,2]
[321998297,1712678612715,-6065.99,0.00019726,2]
[321998298,1712678612738,-500.0,0.00019726,2]
[321998299,1712678612761,-500.0,0.00019726,2]
[321998300,1712678612784,-564.39,0.00019726,2]
[321998301,1712678612807,-1304.86,0.00019726,2]
[321998302,1712678612831,-2142.78,0.00019726,2]
[321998303,1712678612853,-732.3,0.00019726,2]
[321998304,1712678612876,-500.0,0.00019726,2]
[321998305,1712678612898,-867.56,0.00019726,2]
[321998306,1712678612921,-2553.1,0.00019726,2]
[321998307,1712678612944,-570.28,0.00019726,2]
[321998308,1712678612967,-500.0,0.00019726,2]
[321998309,1712678612989,-528.2,0.00019726,2]
[321998310,1712678613012,-500.0,0.00019726,2]
[321998311,1712678613035,-1672.96,0.00019726,2]
[321998312,1712678613060,-6181.26,0.00019726,2]
[321998313,1712678613082,-500.0,0.00019726,2]
[321998314,1712678613107,-500.0,0.00019726,2]
[321998315,1712678613130,-813.03,0.00019726,2]
[321998316,1712678613154,-280.36,0.00019726,2]
[321998317,1712678613180,-3149.26,0.00019726,2]
[321998318,1712678613203,-7141.56,0.00019726,2]
[321998319,1712678613229,-500.0,0.00019726,2]
[321998320,1712678613254,-500.0,0.00019726,2]
[321998321,1712678613277,-833.92,0.00019726,2]
[321998322,1712678613302,-500.0,0.00019726,2]
[321998323,1712678613327,-500.0,0.00019726,2]
[321998324,1712678613352,-1112.75,0.00019726,2]
[321998325,1712678613379,-239.57,0.00019726,2]
[321998326,1712678613402,-593.76,0.00019726,2]
[321998327,1712678613425,-18933.75,0.00019726,2]
[321998328,1712678613451,-1848.76,0.00019726,2]
[321998329,1712678613476,-748.78,0.00019726,2]
[321998330,1712678613500,-1710.18,0.00019726,2]
[321998331,1712678613524,-500.0,0.00019726,2]
[321998332,1712678613549,-519.4,0.00019726,2]
[321998333,1712678613574,-1877.53,0.00019726,2]
[321998334,1712678613598,-500.0,0.00019726,2]
[321998335,1712678613621,-415.4,0.00019726,2]
[321998336,1712678613645,-500.0,0.00019726,2]
[321998337,1712678613668,-921.86,0.00019726,2]
[321998338,1712678613691,-1782.96,0.00019726,2]
[321998339,1712678613715,-2998.81,0.00019726,2]
[321998340,1712678613736,-500.0,0.00019726,2]
[321998341,1712678613759,-500.0,0.00019726,2]
[321998342,1712678613781,-610.54,0.00019726,2]
[321998343,1712678613804,-500.0,0.00019726,2]
[321998344,1712678613827,-500.0,0.00019726,2]
[321998345,1712678613850,-500.0,0.00019726,2]
[321998346,1712678613874,-2967.24,0.00019726,2]
[321998347,1712678613898,-157.31,0.00019726,2]
[321998348,1712678613920,-4257.09,0.00019726,2]
[321998349,1712678613943,-761.51,0.00019726,2]
[321998350,1712678613968,-2237.16,0.00019726,2]
[321998351,1712678613990,-1416.08,0.00019726,2]
[321998352,1712678614012,-714.6,0.00019726,2]
[321998353,1712678614035,-545.1,0.00019726,2]
[321998354,1712678614059,-1053.2,0.00019726,2]
[321998355,1712678614084,-1070.91,0.00019726,2]
[321998356,1712678614108,-334.93,0.00019726,2]
[321998357,1712678614131,-393.14,0.00019726,2]
[321998358,1712678614156,-2630.97,0.00019726,2]